bitfinex-derivatives/quotes_BNBF0:USTF0_20250406
["timestamp","ask_amount","ask_price","bid_price","bid_amount"]
[1743935649469,0.58085567,588.26,587.55,1.26919122]
[1743935649667,0.58085567,588.25,587.56,0.28622299]
[1743935649863,0.58085567,588.24,587.56,0.28622299]
[1743935650065,0.58085567,588.23,587.56,0.28622299]
[1743935650264,0.58085567,588.22,587.56,0.28622299]
[1743935650469,0.58085567,588.21,587.56,0.28622299]
[1743935650671,0.455,588.28,587.56,0.28622299]
[1743935650871,0.5805512,588.27,587.56,0.28622299]
[1743935651172,0.5805512,588.26,587.56,0.28622299]
[1743935651471,0.455,588.28,587.56,0.28622299]
[1743935651472,0.5805512,588.25,587.56,0.28622299]
[1743935651670,0.5805512,588.25,587.47,0.28622299]
[1743935651866,0.455,588.28,587.48,0.28622299]
[1743935652170,0.455,588.28,587.47,0.28622299]
[1743935652466,0.455,588.28,587.48,0.28622299]
[1743935652670,0.455,588.28,587.49,0.28622299]
[1743935652965,0.58043902,588.27,587.5,0.28622299]
[1743935653167,0.58043902,588.26,587.51,0.28622299]
[1743935653371,0.58043902,588.25,587.47,0.28622299]
[1743935653670,0.58043902,588.24,587.48,0.28622299]
[1743935656767,1.03506755,588.28,587.45,0.28625686]
[1743935656969,1.03506755,588.28,587.4,0.28625686]
[1743935657266,0.455,588.28,587.41,0.28625686]
[1743935657472,0.455,588.28,587.4,0.28625686]
[1743935657668,0.455,588.28,587.41,0.28625686]
[1743935657874,0.455,588.28,587.42,0.28625686]
[1743935658070,0.455,588.28,587.4,0.28625686]
[1743935658276,0.455,588.28,587.41,0.28625686]
[1743935658571,0.455,588.28,587.42,0.28625686]
[1743935658772,0.595,588.27,587.16,0.28625686]
[1743935659071,0.595,588.27,587.17,0.62687371]
[1743935659272,0.595,588.27,587.18,0.62686791]
[1743935659476,0.595,588.27,587.12,1.26919122]
[1743935659477,0.595,588.27,587.19,0.62686231]
[1743935659678,0.595,588.27,587.2,0.62685651]
[1743935659875,0.595,588.27,587.21,0.62685071]
[1743935660074,0.595,588.27,587.22,0.62684491]
[1743935660272,0.595,588.27,587.23,0.62683911]
[1743935660472,0.595,588.27,587.24,0.62683331]
[1743935660673,0.595,588.27,587.25,0.62682751]
[1743935660880,0.595,588.27,587.26,0.28625706]
[1743935661080,0.595,588.27,587.27,0.62681604]
[1743935661276,0.595,588.27,587.28,0.62681024]
[1743935661479,0.595,588.27,587.29,0.62680444]
[1743935661680,0.595,588.27,587.3,0.34054146]
[1743935662011,0.595,588.27,587.31,0.28625719]
[1743935662906,0.595,588.27,587.32,0.28625782]
[1743935663093,0.595,588.27,587.31,0.28625782]
[1743935663287,0.595,588.27,587.32,0.28625782]
[1743935663487,0.595,588.27,587.33,0.28625782]
[1743935663682,0.595,588.27,587.31,0.28625782]
[1743935663884,0.595,588.27,587.44,1.26919122]
[1743935664188,0.595,588.27,587.45,0.28625782]
[1743935666087,0.595,588.27,587.44,1.26919122]
[1743935666389,0.595,588.27,587.49,1.26919122]
[1743935666784,0.595,588.27,587.5,0.28623098]
[1743935667490,0.559,588.26,587.5,0.28623098]
[1743935669892,0.559,588.26,587.55,1.26919122]
[1743935670097,0.559,588.26,587.56,0.28623098]
[1743935671699,0.559,588.26,587.57,1.26919122]
[1743935671897,0.559,588.26,587.58,0.28623098]
[1743935673502,0.559,588.26,587.6,1.26919122]
[1743935673704,0.559,588.26,587.61,0.28623098]
[1743935674303,0.559,588.26,587.6,1.26919122]
[1743935674304,0.559,588.26,587.62,0.28623109]
[1743935674501,0.559,588.26,587.6,1.26919122]
[1743935674701,0.559,588.26,587.61,0.28623035]
[1743935675805,0.559,588.26,587.62,1.26919122]
[1743935676105,0.559,588.26,587.63,0.28623035]
[1743935678006,0.559,588.26,587.64,0.28623048]
[1743935678307,0.559,588.26,587.65,0.28623048]
[1743935678607,0.559,588.26,587.66,0.28623048]
[1743935678801,0.559,588.26,587.52,0.28623048]
[1743935679107,0.559,588.26,587.53,0.28623048]
[1743935679506,0.559,588.26,587.54,0.28623048]
[1743935679702,0.559,588.26,587.52,0.28623048]
[1743935679906,0.559,588.26,587.53,0.28623048]
[1743935680103,0.559,588.26,587.53,1.26919122]
[1743935680306,0.559,588.26,587.54,0.28623048]
[1743935680507,0.595,588.27,587.54,0.28623048]
[1743935681705,0.57967485,588.35,587.54,0.28623048]
[1743935681902,0.57967485,588.34,587.54,0.28623048]
[1743935682107,0.57967485,588.33,587.54,0.28623048]
[1743935682305,1.52672236,589.1,587.54,0.28623048]
[1743935682306,0.57967485,588.32,587.54,0.28623048]
[1743935682507,0.57967485,589.09,587.54,0.28623048]
[1743935682708,0.33956433,588.99,587.54,0.28623048]
[1743935683008,0.89217604,588.98,587.54,0.28623048]
[1743935683209,0.89217604,588.97,587.54,0.28623048]
[1743935683508,0.89217604,588.96,587.54,0.28623048]
[1743935683709,0.89217604,588.95,587.54,0.28623048]
[1743935684010,0.89217604,588.94,587.54,0.28623048]
[1743935684209,0.3396047,588.92,587.54,0.28623048]
[1743935684509,0.57967485,588.91,587.53,1.26919122]
[1743935684711,0.339622,588.89,587.54,0.28622626]
[1743935685008,0.89217814,588.88,587.54,0.28622626]
[1743935685204,0.3396393,588.86,587.54,0.28622626]
[1743935685404,0.89217814,588.85,587.54,0.28622626]
[1743935685609,0.3396566,588.83,587.54,0.28622626]
[1743935685809,0.89217814,588.82,587.54,0.28622626]
[1743935686009,0.33967391,588.8,587.54,0.28622626]
[1743935686208,0.89217814,588.79,587.58,1.26919122]
[1743935686411,1.23186359,588.78,587.59,0.28622626]
[1743935686610,1.23186936,588.77,587.59,0.28622626]
[1743935686813,1.23187513,588.76,587.59,0.28622626]
[1743935687008,1.2318809,588.75,587.59,0.28622626]
[1743935687310,1.23188667,588.74,587.59,0.28622626]
[1743935687511,1.23189244,588.73,587.59,0.28622626]
[1743935687708,1.23189821,588.72,587.59,0.28622626]
[1743935687910,1.23190398,588.71,587.62,1.26919122]
[1743935688109,1.23190975,588.7,587.63,0.28622626]
[1743935688306,1.23191552,588.69,587.63,0.28622626]
[1743935688506,1.23192129,588.68,587.63,0.28622626]
[1743935688709,1.23192706,588.67,587.63,0.28622626]
[1743935688908,1.23193283,588.66,587.63,0.28622626]
[1743935689111,1.2319386,588.65,587.63,0.28622626]
[1743935689314,1.23194438,588.64,587.63,0.28622626]
[1743935689511,0.91944686,588.63,587.63,0.28622626]
[1743935689707,1.23195592,588.62,587.63,0.28622626]
[1743935689913,0.89217814,588.61,587.63,0.28622626]
[1743935690113,0.57967485,588.6,587.63,0.28622626]
[1743935690314,0.57967485,588.59,587.63,1.55541748]
[1743935690515,0.57967485,588.58,587.64,0.28622626]
[1743935690718,0.57967485,588.57,587.64,0.28622626]
[1743935690914,0.57967485,588.56,587.64,0.28622626]
[1743935691215,0.57967485,588.55,587.64,0.28622626]
[1743935691414,0.57967485,588.54,587.64,0.28622626]
[1743935691612,0.57967485,588.53,587.64,0.28622626]
[1743935691810,0.57967485,588.52,587.64,0.28622626]
[1743935692010,0.57967485,588.51,587.64,0.28622626]
[1743935692312,0.57967485,588.5,587.64,0.28622626]
[1743935692511,0.57967485,588.49,587.64,0.28622626]
[1743935692713,0.57967485,588.48,587.64,0.28622626]
[1743935692910,0.57967485,588.47,587.64,1.55541748]
[1743935693216,0.57967485,588.46,587.65,0.28622626]
[1743935693409,0.57967485,588.45,587.65,0.28622626]
[1743935693615,0.57967485,588.44,587.65,0.28622626]
[1743935693812,0.57967485,588.43,587.65,0.28622626]
[1743935694016,0.57967485,588.42,587.65,0.28622626]
[1743935694319,0.57967485,588.41,587.65,0.28622626]
[1743935694516,0.57967485,588.4,587.65,0.28622626]
[1743935694715,0.57967485,588.39,587.65,0.28622626]
[1743935695014,0.57967485,588.38,587.65,0.28622626]
[1743935695215,0.57967485,588.37,587.65,0.28622626]
[1743935695417,0.57967485,588.36,587.65,0.28622626]
[1743935695617,0.57967485,588.35,587.65,0.28622626]
[1743935695814,0.57967485,588.34,587.65,0.28622626]
[1743935696018,0.58045737,588.33,587.65,0.28622626]
[1743935696215,0.58045737,588.32,587.65,0.28622626]
[1743935696421,0.29580895,588.51,587.65,0.28622626]
[1743935696618,0.58050789,588.5,587.65,0.28622626]
[1743935696815,0.58050789,588.49,587.65,0.28622626]
[1743935697018,0.58050789,588.48,587.65,0.28622626]
[1743935697218,0.58050789,588.47,587.65,0.28622626]
[1743935697412,0.58050789,588.46,587.65,0.28622626]
[1743935697614,0.58050789,588.45,587.65,0.28622626]
[1743935697814,0.58050789,588.44,587.65,0.28622626]
[1743935698118,0.58050789,588.43,587.66,0.28617636]
[1743935698319,0.58050789,588.42,587.65,0.28617636]
[1743935698518,0.58050789,588.41,587.66,0.28617636]
[1743935698818,0.58050789,588.4,587.67,0.28617636]
[1743935699020,0.58050789,588.39,587.65,0.28617636]
[1743935699319,0.58050789,588.38,587.66,0.28617636]
[1743935699521,0.58050789,588.37,587.64,1.26919122]
[1743935699718,0.58050789,588.36,587.65,0.28617447]
[1743935699921,0.58050789,588.35,587.65,0.28617447]
[1743935700118,0.58050789,588.34,587.65,0.28617447]
[1743935700318,0.33977778,588.62,587.67,1.26919122]
[1743935700319,0.58050789,588.33,587.67,1.26919122]
[1743935700518,0.58050789,588.32,587.68,0.28617447]
[1743935700719,0.33977778,588.62,587.68,0.28617447]
[1743935700922,0.58057466,588.61,587.67,1.26919122]
[1743935701123,0.58057501,588.6,587.68,0.28618043]
[1743935701318,0.58057501,588.59,587.68,0.28618043]
[1743935701520,0.58057501,588.58,587.68,0.28618043]
[1743935701723,0.58057501,588.57,587.68,0.28618043]
[1743935701919,0.58057501,588.56,587.68,0.28618043]
[1743935702125,0.58057501,588.55,587.68,0.28618043]
[1743935702323,0.58057501,588.54,587.68,0.28618043]
[1743935702624,0.58057501,588.53,587.69,0.28616805]
[1743935702819,0.29580518,588.6,587.68,0.28616805]
[1743935702820,0.58056241,588.52,587.68,0.28616805]
[1743935703024,0.58056241,588.51,587.67,0.28616805]
[1743935703325,0.58056241,588.5,587.68,0.28617006]
[1743935703525,0.58056241,588.49,587.67,0.28617006]
[1743935703820,0.58056241,588.48,587.67,0.28617006]
[1743935704019,0.58056241,588.47,587.67,0.28617006]
[1743935704224,0.58056241,588.46,587.67,0.28617006]
[1743935704426,0.58056241,588.45,587.67,0.28617006]
[1743935704624,0.58056241,588.44,587.67,0.28617006]
[1743935704921,0.58056241,588.43,587.67,0.28617006]
[1743935705124,0.58056241,588.42,587.67,0.28617006]
[1743935705325,0.58056241,588.41,587.67,0.28617006]
[1743935705526,0.58056241,588.4,587.67,0.28617006]
[1743935705724,0.58056241,588.39,587.66,1.26919122]
[1743935705925,0.58056241,588.38,587.67,0.286161]
[1743935706125,0.58056241,588.37,587.67,0.286161]
[1743935706426,0.58042989,588.36,587.67,0.286161]
[1743935706625,0.33977778,588.62,587.67,0.286161]
[1743935706826,0.58038191,588.61,587.67,0.286161]
[1743935707027,0.58038191,588.6,587.67,0.286161]
[1743935707327,0.58038191,588.59,587.67,0.286161]
[1743935707629,0.58038191,588.58,587.68,0.2861652]
[1743935707825,0.58038191,588.57,587.67,0.2861652]
[1743935708020,0.58038191,588.56,587.68,0.2861652]
[1743935708224,0.58038191,588.56,587.59,0.29580643]
[1743935708225,0.58038191,588.55,587.69,0.2861652]
[1743935708424,0.58038191,588.54,587.62,0.2861652]
[1743935708624,0.58038191,588.53,587.63,0.2861652]
[1743935708821,0.58038191,588.52,587.62,0.2861652]
[1743935709025,0.58038191,588.51,587.63,0.2861652]
[1743935709221,1.20538191,588.5,587.64,0.2861652]
[1743935709426,0.58038191,588.49,587.62,0.2861652]
[1743935709627,0.58038191,588.48,587.63,0.2861652]
[1743935709824,0.58038191,588.47,587.62,0.2861652]
[1743935710125,0.58038191,588.46,587.63,0.2861652]
[1743935710320,0.58038191,588.45,587.62,0.2861652]
[1743935710525,0.58038191,588.44,587.63,0.2861652]
[1743935710722,0.29585799,588.46,587.62,0.2861652]
[1743935710723,0.58038191,588.43,587.62,0.2861652]
[1743935711026,0.58038191,588.42,587.63,0.2861652]
[1743935711227,0.58038191,588.41,587.59,0.2861652]
[1743935711427,0.58038191,588.4,587.59,0.2861652]
[1743935711728,0.58038191,588.39,587.59,0.2861652]
[1743935712023,0.58038191,588.38,587.59,0.2861652]
[1743935712229,0.58038191,588.37,587.59,0.2861652]
[1743935712426,0.58038191,588.37,587.35,1.26919122]
[1743935712427,0.58038191,588.36,587.36,0.2861652]
[1743935712629,0.58038191,588.35,587.37,0.62672349]
[1743935712829,0.58038191,588.34,587.38,0.62671769]
[1743935713025,0.58038191,588.33,587.39,0.6267119]
[1743935713231,0.58038191,588.32,587.4,0.6267061]
[1743935713430,0.58038191,588.31,587.41,0.28622262]
[1743935713631,0.58038191,588.3,587.41,0.28622262]
[1743935713832,0.58038191,588.29,587.41,0.28622262]
[1743935714128,0.58038191,588.28,587.41,0.28622262]
[1743935714333,0.58038191,588.27,587.41,0.28622262]
[1743935714632,0.58038191,588.26,587.41,0.28622262]
[1743935714833,0.29588692,588.39,587.41,0.28622262]
[1743935715133,0.58015724,588.38,587.41,0.28622262]
[1743935715327,0.58015724,588.37,587.41,0.28622262]
[1743935715527,0.58018002,588.36,587.41,0.28622262]
[1743935715732,0.58018002,588.35,587.4,0.34048348]
[1743935716032,0.5801823,588.34,587.41,0.28622196]
[1743935716328,0.58019386,588.33,587.41,0.28622196]
[1743935716829,0.58019386,588.33,587.44,1.26919122]
[1743935717029,0.531,588.35,587.45,0.28622196]
[1743935717432,0.58020594,588.34,587.45,0.28622196]
[1743935717734,0.531,588.35,587.46,0.28622101]
[1743935717929,0.531,588.35,587.45,0.28622101]
[1743935718132,0.531,588.35,587.46,0.28622101]
[1743935718329,0.531,588.35,587.45,0.28622101]
[1743935718528,0.58018113,588.34,587.45,0.28622101]
[1743935719230,0.58018113,588.34,587.46,0.28622253]
[1743935719428,0.58018113,588.34,587.45,0.28622253]
[1743935719634,0.58018113,588.34,587.46,0.28622253]
[1743935719831,0.58019938,588.33,587.45,0.28622253]
[1743935720032,0.58019938,588.32,587.46,0.28622253]
[1743935720230,0.531,588.35,587.47,0.28622253]
[1743935720231,0.58019938,588.31,587.47,0.28622253]
[1743935720433,0.58019938,588.34,587.45,0.28622253]
[1743935720633,0.58019938,588.33,587.44,1.26919122]
[1743935720835,0.58019938,588.32,587.45,0.28622264]
[1743935721036,0.58019938,588.31,587.45,0.28622264]
[1743935721238,0.58019938,588.34,587.48,1.26919122]
[1743935721432,0.58019938,588.33,587.49,0.28622264]
[1743935721631,0.58019938,588.32,587.49,0.28622264]
[1743935721830,0.531,588.35,587.49,0.28622264]
[1743935721831,0.58019938,588.31,587.49,0.28622264]
[1743935722131,0.58019938,588.34,587.49,0.28622264]
[1743935722331,0.58019938,588.33,587.49,0.28622264]
[1743935722536,0.58019938,588.32,587.49,0.28622264]
[1743935722738,0.58019938,588.31,587.49,0.28622264]
[1743935722939,0.58019938,588.3,587.49,0.28622264]
[1743935723140,0.58019938,588.34,587.49,0.28622264]
[1743935723340,0.58019938,588.33,587.49,0.28622264]
[1743935723542,0.58019938,588.32,587.49,0.28622264]
[1743935723742,0.58019938,588.31,587.49,0.28622264]
[1743935723936,0.58019938,588.3,587.49,0.28622264]
[1743935724137,0.58019938,588.34,587.5,1.26919122]
[1743935724335,0.58019938,588.33,587.51,0.28622264]
[1743935724638,0.58019938,588.32,587.51,0.28622264]
[1743935724838,0.58019938,588.31,587.51,0.28622264]
[1743935725041,0.58019938,588.3,587.51,0.28622264]
[1743935725238,0.58019938,588.29,587.51,0.28622264]
[1743935725438,0.58019938,588.34,587.51,0.28622264]
[1743935725636,0.58019938,588.34,587.5,1.26919122]
[1743935725637,0.58019938,588.33,587.5,1.26919122]
[1743935725843,0.58019938,588.32,587.51,0.28621174]
[1743935726043,0.58019938,588.31,587.51,0.28621174]
[1743935726257,0.58019938,588.34,587.51,0.28621174]
[1743935726439,0.531,588.35,587.51,0.28621174]
[1743935726643,0.58037036,588.34,587.51,0.28621174]
[1743935726839,0.58037036,588.33,587.51,0.28621174]
[1743935727042,0.58037036,588.32,587.51,0.28621174]
[1743935727239,0.58037036,588.31,587.51,0.28621174]
[1743935727539,0.58037036,588.34,587.51,0.28621174]
[1743935727742,0.58037036,588.33,587.51,0.28621174]
[1743935727942,0.58037036,588.32,587.51,0.28621174]
[1743935728240,0.58037036,588.31,587.53,1.26919122]
[1743935728446,0.58037036,588.3,587.54,0.28621174]
[1743935728744,0.531,588.35,587.54,0.28621174]
[1743935728745,0.58037036,588.29,587.54,0.28621174]
[1743935729039,0.58037036,588.28,587.53,1.26919122]
[1743935729245,0.531,588.35,587.54,0.28621179]
[1743935729447,0.58036636,588.34,587.54,0.28621179]
[1743935729748,0.58036636,588.33,587.54,0.28621179]
[1743935729942,0.531,588.35,587.54,0.28621179]
[1743935729943,0.58036636,588.32,587.54,0.28621179]
[1743935730247,0.58036636,588.31,587.65,1.26919122]
[1743935730440,0.58036636,588.3,587.66,0.28621179]
[1743935730644,0.58036636,588.29,587.66,0.28621179]
[1743935730841,0.58036636,588.28,587.66,0.28621179]
[1743935731046,0.58036636,588.27,587.66,0.28621179]
[1743935731248,0.58036636,588.26,587.66,0.28621179]
[1743935731446,0.531,588.35,587.66,0.28621179]
[1743935731646,0.580372,588.34,587.66,0.28621179]
[1743935731846,0.580372,588.33,587.66,0.28621179]
[1743935732045,0.580372,588.32,587.66,0.28621179]
[1743935732246,0.580372,588.31,587.66,0.28621179]
[1743935732447,0.580372,588.3,587.66,0.28621179]
[1743935732641,0.580372,588.29,587.66,0.28621179]
[1743935732845,0.531,588.35,587.66,0.28621179]
[1743935732846,0.580372,588.28,587.66,0.28621179]
[1743935733144,0.580372,588.27,587.64,0.28621179]
[1743935733349,0.580372,588.26,587.65,0.28621179]
[1743935733549,0.58037803,588.25,587.64,0.28621179]
[1743935733748,0.531,588.35,587.65,0.28621179]
[1743935733949,0.58038501,588.34,587.64,0.28621179]
[1743935734144,0.58038501,588.33,587.63,1.26919122]
[1743935734346,0.58038501,588.32,587.63,1.26919122]
[1743935734546,0.58038501,588.31,587.63,1.26919122]
[1743935734749,0.58038501,588.3,587.65,1.26919122]
[1743935734949,0.58038501,588.29,587.65,1.26919122]
[1743935735149,0.58038501,588.28,587.65,1.26919122]
[1743935735448,0.58038501,588.27,587.65,1.26919122]
[1743935735645,0.58023423,588.26,587.65,1.26919122]
[1743935735845,0.58023604,588.25,587.65,1.26919122]
[1743935736147,0.58023604,588.24,587.65,1.26919122]
[1743935736347,0.58023604,588.23,587.65,1.26919122]
[1743935736544,0.58023604,588.34,587.65,1.26919122]
[1743935736747,0.58023604,588.33,587.65,1.26919122]
[1743935736946,0.58023604,588.32,587.65,1.26919122]
[1743935737145,0.58023604,588.31,587.65,1.26919122]
[1743935737351,0.58023604,588.3,587.42,0.29588943]
[1743935737553,0.58016725,588.29,587.42,0.29588943]
[1743935737853,0.58016725,588.28,587.42,0.29588943]
[1743935738151,0.58016725,588.27,587.42,0.29588943]
[1743935738352,0.58016725,588.26,587.42,0.29588943]
[1743935738553,0.58016725,588.25,587.42,0.29588943]
[1743935738756,0.58016725,588.24,587.42,0.29588943]
[1743935738955,0.58016725,588.31,587.43,0.28626931]
[1743935739154,0.58016725,588.3,587.43,0.28626931]
[1743935739355,0.58005895,588.29,587.41,0.28626931]
[1743935739554,0.58005895,588.28,587.42,0.28626931]
[1743935739752,0.58005895,588.27,587.41,0.28626931]
[1743935739952,0.58005895,588.26,587.42,0.28626931]
[1743935740154,0.58005895,588.25,587.41,0.28626931]
[1743935740355,0.58005895,588.49,587.43,0.28626931]
[1743935740556,0.58005895,588.49,586.92,1.26919122]
[1743935740557,0.29590201,588.32,587.44,0.28626638]
[1743935740755,0.29590201,588.32,587.42,0.29590201]
[1743935740756,0.58005895,588.31,587.43,0.28626638]
[1743935740958,0.58005895,588.3,587.44,0.28626638]
[1743935741255,0.58005895,588.29,587.45,0.28626638]
[1743935741455,0.58005895,588.28,587.43,0.28626638]
[1743935741651,0.58005895,588.27,587.42,0.29590201]
[1743935741855,0.58005895,588.26,587.43,0.28626972]
[1743935742057,0.58005895,588.31,587.42,0.29590201]
[1743935742259,0.58005895,588.3,587.43,0.28626947]
[1743935742457,0.58005895,588.29,587.43,0.28626947]
[1743935742658,0.58005895,588.28,587.44,0.28626947]
[1743935742859,0.58005895,588.27,587.41,0.28626947]
[1743935743059,0.58005895,588.26,587.42,0.28626947]
[1743935743259,0.58005895,588.25,587.41,0.28626947]
[1743935743455,0.58005895,588.24,587.42,0.58219413]
[1743935743655,0.58005895,588.23,587.43,0.28626947]
[1743935743856,0.58005895,588.22,587.43,0.28626947]
[1743935744159,0.58005895,588.21,587.43,0.28626947]
[1743935744359,0.58005895,588.2,587.43,0.28626947]
[1743935744558,0.99792466,588.32,587.43,0.28626947]
[1743935744559,0.58005895,588.19,587.43,0.28626947]
[1743935744759,0.58005895,588.18,587.43,0.28626947]
[1743935745055,0.99792466,588.32,587.43,0.28626947]
[1743935745258,0.57978639,588.31,587.43,0.28626947]
[1743935745455,0.57978639,588.3,587.41,0.28626947]
[1743935745658,0.57978639,588.29,587.41,0.28626947]
[1743935745961,0.57978639,588.28,587.41,0.28626947]
[1743935746160,0.57978639,588.27,587.41,0.28626947]
[1743935746354,0.57978639,588.26,587.42,0.29592466]
[1743935746558,0.57978639,588.25,587.43,0.28626947]
[1743935746758,0.683,588.29,587.43,0.28626947]
[1743935746759,0.57978639,588.24,587.43,0.28626947]
[1743935747060,0.57978639,588.23,587.42,0.29592466]
[1743935747262,0.57978639,588.22,587.43,0.28627277]
[1743935747560,0.57978639,588.21,587.43,0.28627277]
[1743935747861,0.57978639,588.2,587.43,0.28627277]
[1743935748061,0.57978639,588.19,587.43,0.28627277]
[1743935748258,0.57978639,588.18,587.43,0.28627277]
[1743935748460,0.57966446,588.28,587.41,0.28627277]
[1743935748656,0.57966446,588.27,587.41,0.28627277]
[1743935748860,0.57966446,588.26,587.23,1.26919122]
[1743935749061,0.57966446,588.25,587.41,0.28627326]
[1743935749261,0.57966446,588.24,587.41,0.28627326]
[1743935749461,0.57966446,588.23,587.41,0.58222308]
[1743935749662,0.57966446,588.22,587.42,0.28627326]
[1743935749957,0.683,588.29,587.42,0.28627326]
[1743935751465,0.683,588.29,587.43,0.28627326]
[1743935751765,0.683,588.29,587.23,1.26919122]
[1743935751766,0.683,588.29,587.44,0.28627326]
[1743935751957,0.683,588.29,587.23,1.26919122]
[1743935751958,0.683,588.29,587.41,0.28627326]
[1743935752158,0.683,588.29,587.23,1.26919122]
[1743935752363,0.683,588.29,587.42,0.28626702]
[1743935752566,0.683,588.29,587.43,0.28626702]
[1743935752765,0.683,588.29,587.42,0.28626702]
[1743935752961,0.683,588.29,587.43,0.28626702]
[1743935753162,0.683,588.29,587.42,0.28626702]
[1743935753365,0.683,588.29,587.43,0.28626702]
[1743935753568,0.683,588.29,587.42,0.28626702]
[1743935753761,0.683,588.29,587.43,0.28626702]
[1743935753961,0.683,588.29,587.42,0.28626702]
[1743935754165,0.683,588.29,587.43,0.28626702]
[1743935754362,0.683,588.29,587.41,0.28626702]
[1743935754566,0.683,588.29,587.42,0.28626702]
[1743935754761,0.683,588.29,587.43,0.28626702]
[1743935754966,0.683,588.29,587.41,0.28626702]
[1743935755167,0.683,588.29,587.42,0.28626702]
[1743935755368,0.683,588.29,587.41,0.28626702]
[1743935755567,0.683,588.29,587.42,0.28626702]
[1743935757471,0.683,588.29,587.41,0.28626702]
[1743935757771,0.683,588.29,587.42,0.28626702]
[1743935757971,0.683,588.29,587.41,0.28626702]
[1743935758169,0.57976091,588.28,587.41,0.28626702]
[1743935758370,0.57976091,588.27,587.41,0.58218287]
[1743935758667,0.57976091,588.26,587.42,0.28626702]
[1743935758867,0.57976091,588.28,587.42,0.28626702]
[1743935759073,0.57976091,588.27,587.42,0.28626702]
[1743935759373,0.57984528,588.26,587.42,1.55545824]
[1743935759671,0.57984528,588.25,587.43,0.28626702]
[1743935759869,0.683,588.29,587.43,0.28626702]
[1743935760074,0.57988672,588.28,587.43,0.28626702]
[1743935760271,0.57988672,588.27,587.43,0.28626702]
[1743935760470,0.57988672,588.26,587.43,0.28626702]
[1743935760671,0.57988672,588.25,587.43,0.28626702]
[1743935760873,0.57988313,588.28,587.43,0.28626702]
[1743935761170,0.57988313,588.27,587.43,0.28626702]
[1743935761370,0.57988313,588.26,587.43,0.28626702]
[1743935761569,0.683,588.29,587.43,0.28626702]
[1743935761570,0.57989977,588.25,587.43,0.28626702]
[1743935761773,0.57989977,588.28,587.44,0.28623275]
[1743935761970,0.57989977,588.27,587.43,0.28623275]
[1743935762171,0.57989977,588.26,587.51,1.26919122]
[1743935762469,0.57989977,588.25,587.52,0.28623275]
[1743935762671,0.683,588.29,587.52,0.28623275]
[1743935762872,0.57997021,588.28,587.52,0.28623275]
[1743935763070,0.57997021,588.27,587.52,0.28623275]
[1743935763276,0.57997021,588.26,587.52,0.28623275]
[1743935763575,0.57997021,588.25,587.52,0.28623275]
[1743935763874,0.683,588.29,587.52,0.28623275]
[1743935764071,0.58004685,588.28,587.48,0.28623275]
[1743935764276,0.58005234,588.27,587.49,0.28623275]
[1743935764476,0.58005234,588.26,587.48,0.28623275]
[1743935764675,0.58015964,588.28,587.49,0.28623275]
[1743935764875,0.683,588.29,587.48,0.28623275]
[1743935765076,0.58017281,588.28,587.49,0.28623275]
[1743935765276,0.639,588.28,587.48,0.28623275]
[1743935765472,0.639,588.28,587.49,0.28623275]
[1743935765673,0.639,588.28,587.5,0.28623275]
[1743935765871,0.639,588.28,587.48,0.28623275]
[1743935766075,0.58023166,588.27,587.48,0.28623275]
[1743935766276,0.58023166,588.26,587.48,0.28623275]
[1743935766477,0.58031433,588.25,587.48,0.28623275]
[1743935766674,0.639,588.28,587.47,1.26919122]
[1743935766876,0.5803115,588.27,587.48,0.28622751]
[1743935767071,0.5803115,588.26,587.48,0.28622751]
[1743935767372,0.639,588.28,587.48,0.28622751]
[1743935767373,0.5803115,588.25,587.56,1.26919122]
[1743935767572,0.5803115,588.24,587.57,0.28622751]
[1743935767772,0.639,588.28,587.57,0.28622751]
[1743935767975,0.58040585,588.27,587.57,0.28622751]
[1743935768175,0.58040585,588.26,587.57,0.28622751]
[1743935768375,0.58040585,588.25,587.57,0.28622751]
[1743935768572,0.58040585,588.24,587.57,0.28622751]
[1743935768776,0.639,588.28,587.57,0.28622751]
[1743935768974,0.58050828,588.27,587.57,0.28622751]
[1743935769272,0.58050828,588.26,587.57,0.28622751]
[1743935769474,0.58050828,588.25,587.57,1.55541873]
[1743935769674,0.58050828,588.24,587.58,0.28622751]
[1743935769874,0.58050828,588.23,587.58,0.28622751]
[1743935770176,0.639,588.28,587.58,0.28622751]
[1743935770375,0.58063177,588.27,587.58,0.28622751]
[1743935770578,0.58063177,588.26,587.58,0.28622751]
[1743935770776,0.58063177,588.25,587.58,0.28622751]
[1743935771077,0.58063177,588.24,587.58,0.28622751]
[1743935771276,0.58063177,588.23,587.58,0.28622751]
[1743935771473,0.639,588.28,587.58,0.28622751]
[1743935771676,0.58064481,588.27,587.57,1.26919122]
[1743935771874,0.58064481,588.26,587.58,0.2862281]
[1743935772078,0.58064481,588.25,587.58,0.2862281]